bitfinex/quotes_ETHUSD_20241022
["timestamp","ask_amount","ask_price","bid_price","bid_amount"]
[1729580401020,3.76633,2655.1,2654.9,2.08941167]
[1729580403334,3.76619,2655.2,2655.0,1.30711167]
[1729580403523,3.76619,2655.2,2655.1,1.30711167]
[1729580403726,3.76619,2655.2,2655.0,1.30711167]
[1729580403925,3.76614,2655.3,2655.1,1.30711167]
[1729580404238,3.76614,2655.3,2655.2,1.30711167]
[1729580404413,3.76614,2655.3,2654.9,0.7823]
[1729580404755,7.53204,2655.4,2655.1,1.30711167]
[1729580404903,3.76606,2655.3,2655.1,1.30711167]
[1729580406497,3.76606,2655.3,2655.2,1.30711167]
[1729580406736,3.76573,2655.6,2655.2,2.08191167]
[1729580406935,0.8303,2656.0,2655.5,1.30711167]
[1729580407148,3.76537,2655.8,2655.7,1.30711167]
[1729580407756,3.76537,2655.8,2655.6,1.30711167]
[1729580407897,7.53081,2655.8,2655.6,1.30711167]
[1729580408102,3.76537,2655.8,2655.6,1.30711167]
[1729580408325,3.76537,2655.8,2655.7,1.30711167]
[1729580408645,3.76537,2655.8,2655.6,1.30711167]
[1729580409027,3.76537,2655.8,2655.5,2.08191167]
[1729580409544,3.76537,2655.8,2655.6,1.30711167]
[1729580410505,3.76548,2655.7,2655.6,1.30711167]
[1729580410739,3.76548,2655.7,2655.5,2.08191167]
[1729580411319,3.76548,2655.7,2655.5,0.7748]
[1729580411509,3.76548,2655.7,2655.5,2.08191167]
[1729580412104,3.76562,2655.6,2655.5,0.7748]
[1729580412304,3.76562,2655.6,2655.5,2.08191167]
[1729580412722,3.76562,2655.6,2655.4,1.30711167]
[1729580413125,3.76584,2655.5,2655.4,1.30711167]
[1729580413327,3.76584,2655.5,2655.2,0.8252]
[1729580413547,3.76584,2655.5,2655.4,1.30711167]
[1729580417411,3.76584,2655.5,2655.4,1.38042131]
[1729580418235,3.76562,2655.6,2655.4,1.38042131]
[1729580418566,3.76507,2656.0,2655.5,2.08951167]
[1729580418567,7.53085,2655.8,2655.5,2.08951167]
[1729580418763,3.76548,2655.7,2655.6,1.30711167]
[1729580419127,3.76548,2655.7,2655.6,0.0732463]
[1729580427288,3.76567,2655.6,2655.4,1.30711167]
[1729580427487,3.76567,2655.6,2655.4,1.85711167]
[1729580427660,3.76567,2655.6,2655.3,0.8063]
[1729580427661,4.19847006,2655.6,2655.3,1.30711167]
[1729580427897,3.76576,2655.5,2655.3,1.30711167]
[1729580428260,3.76576,2655.5,2655.4,0.07319491]
[1729580430405,3.76576,2655.5,2655.3,1.30711167]
[1729580430609,3.76576,2655.5,2655.4,1.38030658]
[1729580434916,3.76576,2655.5,2655.4,0.07319491]
[1729580435116,4.52306,2655.5,2655.4,0.07319491]
[1729580435289,4.52306,2655.5,2655.2,1.85711167]
[1729580435476,4.52306,2655.5,2655.4,0.07328414]
[1729580436011,4.52306,2655.5,2655.2,1.85711167]
[1729580436225,4.52306,2655.5,2655.4,0.07328414]
[1729580436427,4.52306,2655.5,2655.2,1.85711167]
[1729580436574,4.52306,2655.5,2655.4,0.07328414]
[1729580436773,4.52306,2655.5,2655.2,1.85711167]
[1729580436977,4.52306,2655.5,2655.4,0.07328414]
[1729580437281,4.52306,2655.5,2655.3,1.30711167]
[1729580437483,4.52306,2655.5,2655.4,0.07328414]
[1729580437819,3.76634,2655.1,2654.9,1.30711167]
[1729580437994,3.76634,2655.1,2654.7,3.8138]
[1729580437995,3.76658,2655.0,2654.7,0.8138]
[1729580438168,3.76658,2655.0,2654.8,1.30711167]
[1729580438591,3.76658,2655.0,2654.7,0.8138]
[1729580438592,3.76663,2654.9,2654.7,0.8138]
[1729580438811,3.76663,2654.9,2654.8,1.30711167]
[1729580438997,7.5328,2655.1,2654.8,1.30711167]
[1729580439184,7.5328,2655.1,2654.7,3.8138]
[1729580439185,3.76649,2655.0,2654.7,3.8138]
[1729580439392,3.76649,2655.0,2654.9,1.30711167]
[1729580439575,3.76649,2655.0,2654.8,1.30711167]
[1729580440276,3.76649,2655.0,2654.7,3.8138]
[1729580440477,3.76649,2655.0,2654.8,1.30711167]
[1729580441387,3.76649,2655.0,2654.7,0.8138]
[1729580441716,0.767,2654.9,2654.6,1.91882916]
[1729580441940,4.53371,2654.9,2654.7,1.30711167]
[1729580443239,4.53371,2654.9,2654.8,0.07363357]
[1729580446335,4.53371,2654.9,2654.8,1.38074524]
[1729580446717,4.53371,2654.9,2654.8,0.07363357]
[1729580448322,0.767,2654.9,2654.7,1.30711167]
[1729580448523,3.76676,2654.8,2654.7,1.30711167]
[1729580449051,4.53363,2654.9,2654.7,1.30711167]
[1729580449248,3.76676,2654.8,2654.7,1.30711167]
[1729580450411,0.767,2654.9,2654.7,1.30711167]
[1729580450726,3.76649,2655.0,2654.8,1.30711167]
[1729580450913,7.53307,2655.0,2654.8,1.30711167]
[1729580451512,3.76649,2655.0,2654.8,1.30711167]
[1729580451729,3.76649,2655.0,2654.9,1.30711167]
[1729580451927,3.76649,2655.0,2654.8,1.30711167]
[1729580452756,3.76657,2655.0,2654.8,1.30711167]
[1729580453049,3.76662,2654.9,2654.8,1.30711167]
[1729580455859,3.76662,2654.9,2654.6,1.9]
[1729580456059,3.76662,2654.9,2654.8,1.30711167]
[1729580457762,3.76662,2654.9,2654.6,1.9]
[1729580457963,3.76662,2654.9,2654.8,1.30711167]
[1729580458363,3.76662,2654.9,2654.8,1.38108312]
[1729580459225,3.76662,2654.9,2654.8,0.07397145]
[1729580461884,3.76628,2655.2,2654.8,1.70919143]
[1729580462086,3.76602,2655.4,2655.1,1.30711167]
[1729580462387,3.76602,2655.4,2655.2,1.30711167]
[1729580462690,3.76602,2655.4,2655.2,1.38089265]
[1729580463200,3.76577,2655.5,2655.2,1.38089265]
[1729580463347,3.76578,2655.5,2655.3,1.30711167]
[1729580463547,3.76578,2655.5,2655.4,0.07374951]
[1729580464451,3.76592,2655.4,2655.2,2.12131167]
[1729580464651,3.76592,2655.4,2655.2,1.30711167]
[1729580465149,3.76606,2655.3,2655.0,2.13071167]
[1729580465348,4.55946,2655.3,2654.9,1.30711167]
[1729580465555,3.76633,2655.1,2654.9,1.30711167]
[1729580465789,3.76633,2655.1,2655.0,1.30711167]
[1729580469581,3.76633,2655.1,2654.9,1.30711167]
[1729580470661,3.76633,2655.1,2655.0,1.30711167]
[1729580470866,3.76633,2655.1,2654.9,1.30711167]
[1729580471066,3.76633,2655.1,2655.0,1.30711167]
[1729580471992,0.43280006,2655.6,2655.1,0.7794]
[1729580472192,3.76584,2655.5,2655.3,1.30711167]
[1729580472390,3.76591,2655.4,2655.2,1.85711167]
[1729580473116,3.76584,2655.5,2655.2,1.85711167]
[1729580473413,3.76584,2655.5,2655.3,0.07361861]
[1729580473703,3.76584,2655.5,2655.2,1.85711167]
[1729580473916,3.76584,2655.5,2655.4,0.07360287]
[1729580474114,3.76584,2655.5,2655.3,0.07361861]
[1729580474327,3.76584,2655.5,2655.4,1.38071454]
[1729580474606,0.43280006,2655.6,2655.4,1.38071454]
[1729580474812,0.43280006,2655.6,2655.5,2.08551167]
[1729580475179,0.43280006,2655.6,2655.5,2.15900956]
[1729580477380,4.19842006,2655.6,2655.5,0.85189789]
[1729580477580,4.19842006,2655.6,2655.5,0.07349789]
[1729580477782,4.96842006,2655.6,2655.5,0.07349789]
[1729580478084,7.53201,2655.4,2655.2,1.30711167]
[1729580478387,3.76619,2655.2,2655.1,2.12531167]
[1729580478775,3.76605,2655.3,2655.1,1.30711167]
[1729580479123,3.76619,2655.2,2654.9,0.7775]
[1729580479414,4.53619,2655.2,2654.7,3.7775]
[1729580479622,8.30247,2655.2,2654.7,3.7775]
[1729580480123,4.53619,2655.2,2654.7,3.7775]
[1729580480616,3.76639,2655.1,2655.0,1.30711167]
[1729580480978,3.76647,2655.0,2654.9,1.30711167]
[1729580481222,3.76634,2655.1,2654.9,1.30711167]
[1729580481389,0.77,2655.2,2655.0,1.30711167]
[1729580481715,3.76621,2655.2,2655.1,1.30711167]
[1729580482188,4.55051,2655.4,2655.1,1.30711167]
[1729580482398,4.55051,2655.4,2655.3,1.30711167]
[1729580482399,3.76601,2655.4,2655.3,1.30711167]
[1729580482713,3.76578,2655.5,2655.3,1.30711167]
[1729580482930,4.19851006,2655.6,2655.3,1.30711167]
[1729580483078,7.96424006,2655.6,2655.3,1.30711167]
[1729580483277,3.76578,2655.5,2655.3,1.30711167]
[1729580483483,4.19851006,2655.6,2655.3,1.30711167]
[1729580483484,3.76591,2655.4,2655.3,1.30711167]
[1729580483730,3.76591,2655.4,2655.2,1.30711167]
[1729580484017,3.76605,2655.3,2655.1,1.30711167]
[1729580484229,3.76591,2655.4,2655.0,1.30711167]
[1729580484230,3.76619,2655.2,2655.0,1.30711167]
[1729580484434,3.76619,2655.2,2655.1,1.30711167]
[1729580484591,3.76619,2655.2,2655.0,1.30711167]
[1729580485388,3.76605,2655.3,2655.0,1.30711167]
[1729580485389,3.76633,2655.1,2655.0,1.30711167]
[1729580485589,3.76605,2655.3,2655.0,1.30711167]
[1729580485794,3.76619,2655.2,2655.0,1.30711167]
[1729580487334,3.76619,2655.2,2655.1,1.30711167]
[1729580488324,3.76619,2655.2,2655.1,1.38066614]
[1729580489123,3.76619,2655.2,2655.1,0.07355447]
[1729580490200,3.76619,2655.2,2655.1,1.38066614]
[1729580491843,3.76619,2655.2,2655.1,0.07355447]
[1729580493199,3.76638,2655.1,2655.0,1.30711167]
[1729580493853,3.76619,2655.2,2655.0,1.30711167]
[1729580494446,3.76619,2655.2,2655.1,1.30711167]
[1729580496742,3.76619,2655.2,2654.8,0.8156]
[1729580496945,3.76619,2655.2,2655.1,1.30711167]
[1729580498149,3.76619,2655.2,2655.0,1.30711167]
[1729580498641,3.76619,2655.2,2654.8,0.8156]
[1729580498807,3.76619,2655.2,2655.0,1.30711167]
[1729580499241,3.76646,2655.1,2654.9,1.30711167]
[1729580499576,3.76647,2655.0,2654.9,1.30711167]
[1729580499744,3.76647,2655.0,2654.6,1.9]
[1729580499745,3.76647,2655.0,2654.6,2.722]
[1729580499947,3.76647,2655.0,2654.9,1.30711167]
[1729580502537,7.53304,2655.0,2654.6,2.722]
[1729580502752,3.76668,2654.9,2654.8,1.30711167]
[1729580503370,3.76668,2654.9,2654.8,1.38068787]
[1729580503584,3.76668,2654.9,2654.8,0.0735762]
[1729580503879,3.76668,2654.9,2654.8,1.30711167]
[1729580504079,3.76668,2654.9,2654.8,1.38074523]
[1729580504586,3.76668,2654.9,2654.8,0.07363356]
[1729580504882,3.76668,2654.9,2654.8,1.38074523]
[1729580506476,3.76668,2654.9,2654.8,0.07363356]
[1729580506677,3.76668,2654.9,2654.8,1.38074523]
[1729580506878,3.76635,2655.1,2654.8,2.07301167]
[1729580507100,3.76617,2655.3,2655.1,0.7659]
[1729580507259,4.59227,2655.5,2655.2,1.30711167]
[1729580507260,3.76587,2655.5,2655.2,1.30711167]
[1729580507443,0.43280006,2655.6,2655.4,1.30711167]
[1729580507644,4.19850006,2655.6,2655.4,1.30711167]
[1729580508002,4.19850006,2655.6,2655.5,0.07365088]
[1729580508484,3.76586,2655.5,2655.3,1.30711167]
[1729580509652,4.19850006,2655.6,2655.3,1.30711167]
[1729580509842,7.96422006,2655.6,2655.3,1.30711167]
[1729580510047,7.96420006,2655.6,2655.3,1.30711167]
[1729580510248,4.19850006,2655.6,2655.4,1.30711167]
[1729580510469,7.96421006,2655.6,2655.3,1.30711167]
[1729580510691,3.76585,2655.5,2655.1,0.7659]
[1729580511003,3.76629,2655.2,2655.0,1.30711167]
[1729580511199,3.76633,2655.1,2654.9,1.30711167]
[1729580511395,0.7603,2655.3,2654.7,2.11361167]
[1729580511698,3.76657,2655.0,2654.9,1.30711167]
[1729580513000,3.76669,2654.9,2654.8,1.30711167]
[1729580514172,0.7638,2655.0,2654.6,1.9]
[1729580514388,3.7669,2654.7,2654.6,1.9]
[1729580515113,3.7669,2654.7,2654.6,3.20711167]
[1729580515298,3.7669,2654.7,2654.6,1.9]
[1729580517312,3.7669,2654.7,2654.6,3.20711167]
[1729580518200,4.520279,2654.7,2654.6,1.97406036]
[1729580520206,4.520279,2654.7,2654.6,3.28117203]
[1729580520403,4.520279,2654.7,2654.6,1.97406036]
[1729580521877,3.7669,2654.7,2654.6,3.28117203]
[1729580525989,3.76662,2654.9,2654.6,3.28117203]
[1729580526293,3.76628,2655.2,2654.8,1.30711167]
[1729580526490,3.76591,2655.4,2655.1,1.30711167]
[1729580526689,3.76607,2655.3,2654.9,0.86889368]
[1729580526897,3.76598,2655.4,2654.9,4.56121]
[1729580527098,3.76598,2655.4,2655.3,1.30711167]
[1729580527519,3.76577,2655.5,2654.9,0.7946]
[1729580527698,3.76577,2655.5,2655.2,1.30711167]
[1729580527699,3.76605,2655.4,2655.2,1.30711167]
[1729580527909,3.76605,2655.4,2655.3,1.38124036]
[1729580528291,3.76605,2655.4,2655.3,0.07412869]
[1729580528493,3.76577,2655.5,2655.2,1.30711167]
[1729580528694,3.76605,2655.3,2655.2,1.30711167]
[1729580530699,3.76605,2655.3,2654.9,0.8699244]
[1729580531031,3.76605,2655.3,2655.2,1.30711167]
[1729580531429,3.76577,2655.5,2655.2,1.30711167]
[1729580531608,3.76605,2655.3,2654.9,0.8699244]
[1729580531811,3.76605,2655.3,2655.2,1.30711167]
[1729580532526,3.76598,2655.4,2655.2,1.30711167]
[1729580532735,3.76598,2655.4,2655.3,1.30711167]
[1729580532944,3.76577,2655.5,2655.3,1.30711167]
[1729580533165,0.7673,2655.8,2655.4,1.38122462]
[1729580533320,3.76569,2655.6,2655.5,1.30711167]
[1729580533657,3.76569,2655.6,2655.5,1.38120888]
[1729580534419,3.76569,2655.6,2655.5,0.07409721]
[1729580536445,3.76591,2655.4,2655.3,1.30711167]
[1729580536896,6.65408467,2655.4,2655.3,0.07389278]
[1729580537067,4.59381,2655.4,2655.3,0.07389278]
[1729580537266,3.76613,2655.3,2655.2,1.30711167]
[1729580537572,3.76613,2655.3,2655.1,1.30711167]
[1729580538113,3.7667,2654.9,2654.7,1.30711167]
[1729580538398,3.76684,2654.8,2654.6,1.9]
[1729580538574,3.76684,2654.8,2654.7,1.30711167]
[1729580538774,3.76676,2654.8,2654.7,1.30711167]
[1729580540498,3.7669,2654.7,2654.6,1.9]
[1729580544421,5.315866,2654.7,2654.6,1.9]
[1729580545824,3.7669,2654.7,2654.6,1.9]
[1729580548217,3.7669,2654.7,2654.6,1.97386271]
[1729580548715,3.7669,2654.7,2654.6,0.07386271]
[1729580548934,3.76676,2654.8,2654.2,0.829]
[1729580549094,3.76737,2654.4,2654.2,0.829]
[1729580549281,3.76737,2654.4,2654.3,0.07185774]
[1729580549481,3.76737,2654.4,2654.2,0.829]
[1729580549682,7.5343,2654.6,2654.3,0.07185774]
[1729580549917,3.76726,2654.5,2654.2,0.829]
[1729580550121,3.76726,2654.5,2654.3,0.07185774]
[1729580550322,3.76726,2654.5,2654.2,0.829]
[1729580550626,3.76726,2654.5,2654.3,0.07185774]
[1729580550921,3.76726,2654.5,2654.2,0.829]
[1729580551328,3.76726,2654.5,2654.3,0.07185774]
[1729580551477,3.76732,2654.4,2654.3,0.07185774]
[1729580551684,4.52988,2654.5,2654.1,2.94367418]
[1729580551898,4.52988,2654.5,2654.3,0.07185774]
[1729580552123,4.52988,2654.5,2654.2,0.0718735]
[1729580552322,4.52988,2654.5,2654.4,0.07184199]
[1729580552819,4.52988,2654.5,2654.1,2.92484502]
[1729580552984,4.52988,2654.5,2654.4,0.07184199]
[1729580553184,4.52988,2654.5,2654.1,3.47484502]
[1729580553397,4.52988,2654.5,2654.4,0.07184199]
[1729580553604,4.52988,2654.5,2654.1,3.47484502]
[1729580553812,4.52988,2654.5,2654.4,0.07184199]
[1729580554119,4.52988,2654.5,2654.1,3.47484502]
[1729580554326,4.52988,2654.5,2654.4,0.07184199]
[1729580554490,4.52988,2654.5,2654.1,3.47484502]
[1729580554683,4.52988,2654.5,2654.4,0.07184199]
[1729580554915,0.7627,2654.5,2654.1,3.47484502]
[1729580555221,4.52988,2654.5,2654.1,0.55]
[1729580555412,4.52988,2654.5,2654.2,0.0718735]
[1729580556000,3.76733,2654.4,2654.2,0.0718735]
[1729580562332,3.76733,2654.4,2654.3,1.30928953]
[1729580562636,3.76733,2654.4,2654.3,1.38114727]
[1729580565035,3.7672,2654.5,2654.3,1.38114727]
[1729580565217,3.7672,2654.5,2654.4,1.30928953]
[1729580565542,7.53418,2654.6,2654.4,1.38122079]
[1729580565742,7.53418,2654.6,2654.5,1.30928953]
[1729580566045,3.76705,2654.6,2654.5,1.38120504]
[1729580566542,3.76705,2654.6,2654.5,0.07191551]
[1729580566729,3.76705,2654.6,2654.5,1.30928953]
[1729580566947,3.76705,2654.6,2654.5,1.38120504]
[1729580567652,4.56312,2654.7,2654.5,1.38120504]
[1729580567836,3.7667,2654.9,2654.6,1.30928953]
[1729580568010,3.7668,2654.8,2654.5,0.07191551]
[1729580568212,3.7668,2654.8,2654.7,0.07202433]
[1729580568415,3.7668,2654.8,2654.6,0.07204007]
[1729580568615,3.7668,2654.8,2654.7,0.07202433]
[1729580568854,4.60277,2654.8,2654.7,0.07202433]
[1729580569148,4.60277,2654.8,2654.7,1.30928953]
[1729580569335,7.53341,2654.9,2654.7,1.38131386]
[1729580569537,3.7667,2654.9,2654.7,1.38131386]
[1729580569918,3.76676,2654.8,2654.7,1.38131386]
[1729580571314,3.7667,2654.9,2654.7,1.38131386]
[1729580571632,7.53288,2655.1,2654.8,1.30928953]
[1729580571818,3.76643,2655.1,2655.0,1.30928953]
[1729580572016,4.543,2655.2,2655.0,2.11818953]
[1729580572017,3.7662,2655.2,2655.0,2.11818953]
[1729580572252,3.7662,2655.2,2655.0,0.88072403]
[1729580572422,3.7662,2655.2,2655.1,1.30928953]
[1729580572853,3.7662,2655.2,2655.1,1.38109782]
[1729580575245,3.766,2655.4,2655.1,1.38109782]
[1729580575453,3.76607,2655.3,2655.1,0.07180829]
[1729580575760,3.76607,2655.3,2655.2,1.38085251]
[1729580576857,3.76593,2655.4,2655.2,1.38085251]
[1729580577037,7.53194,2655.4,2655.2,1.38085251]
[1729580577366,3.76593,2655.4,2655.3,1.30928953]
[1729580577658,3.76593,2655.4,2655.3,1.38083677]
[1729580577858,3.76593,2655.4,2655.3,0.07154724]
[1729580578234,3.76593,2655.4,2655.2,1.30928953]
[1729580578436,3.76593,2655.4,2655.3,0.07154724]
[1729580578835,3.76593,2655.4,2655.2,1.30928953]
[1729580579033,3.76593,2655.4,2655.0,0.8089]
[1729580579034,3.76593,2655.4,2655.3,0.07154724]
[1729580579236,3.76593,2655.4,2655.3,1.38083677]
[1729580579458,3.76593,2655.4,2655.3,1.30928953]
[1729580579668,3.76593,2655.4,2655.3,1.38083677]
[1729580580162,3.76593,2655.4,2655.3,0.07154724]
[1729580580368,3.76593,2655.4,2655.2,1.30928953]
[1729580580538,3.76593,2655.4,2655.3,0.07154724]
[1729580580864,3.76593,2655.4,2655.2,1.30928953]
[1729580581165,0.01882916,2655.5,2655.3,1.38083677]
[1729580581463,3.76565,2655.6,2655.3,1.38083677]
[1729580581653,0.7993,2655.7,2655.5,1.30928953]
[1729580581854,3.76544,2655.8,2655.5,1.30928953]
[1729580582071,3.76555,2655.7,2655.4,0.8318]
[1729580582284,3.76555,2655.7,2655.5,1.30928953]
[1729580582433,3.76562,2655.6,2655.5,1.30928953]
[1729580582836,3.76555,2655.7,2655.5,1.30928953]
[1729580583371,3.76555,2655.7,2655.6,1.30928953]
[1729580583583,3.76555,2655.7,2655.5,1.30928953]
[1729580584381,3.76535,2655.8,2655.6,1.30928953]
[1729580585059,3.76516,2656.0,2655.7,1.30928953]
[1729580585261,3.0,2656.3,2655.9,1.30928953]
[1729580585262,3.76466,2656.3,2655.9,1.30928953]
[1729580585461,3.76466,2656.3,2655.9,0.7727]
[1729580585669,3.76466,2656.3,2656.2,1.30928953]
[1729580586173,8.34456,2656.4,2656.2,1.30928953]
[1729580586385,5.414436,2656.4,2656.3,1.30928953]
[1729580587638,5.414436,2656.4,2655.9,0.7727]
[1729580587845,3.76458,2656.4,2656.3,1.30928953]
[1729580588059,3.76458,2656.4,2655.9,0.7727]
[1729580588284,3.76458,2656.4,2656.3,1.30928953]
[1729580590280,3.76436,2656.5,2656.3,1.30928953]
[1729580590490,3.76436,2656.5,2656.4,1.30928953]
[1729580593099,3.76436,2656.5,2656.2,0.7702]
[1729580593252,3.76457,2656.4,2656.2,1.30928953]
[1729580593447,3.76436,2656.5,2656.2,1.30928953]
[1729580593653,7.52881,2656.5,2656.3,1.30928953]
[1729580593884,3.76436,2656.5,2656.2,1.30928953]
[1729580594450,0.80562916,2656.7,2656.2,1.30928953]
[1729580594746,0.8232,2656.4,2655.8,1.3629]
[1729580595093,3.76528,2655.9,2655.4,4.57868]
[1729580595262,3.76527,2655.9,2655.8,1.30928953]
[1729580596154,3.76527,2655.9,2655.4,4.57868]
[1729580596476,3.76527,2655.9,2655.8,1.30928953]
[1729580596678,3.76506,2656.0,2655.8,1.30928953]
[1729580596878,3.76506,2656.0,2655.9,1.30928953]
[1729580598204,3.76473,2656.3,2655.9,1.30928953]
[1729580598205,4.57135,2656.3,2655.9,1.30928953]
[1729580598409,3.76445,2656.5,2656.2,1.30928953]
[1729580598559,3.76445,2656.5,2656.3,1.30928953]
[1729580600667,3.76445,2656.5,2656.2,0.7941]
[1729580600881,3.76445,2656.5,2656.3,1.30928953]
[1729580603794,3.76438,2656.5,2656.3,1.30928953]
[1729580605411,3.76423,2656.6,2656.3,1.30928953]
[1729580605613,7.52835,2656.7,2656.3,1.30928953]
[1729580605834,3.76384,2656.9,2656.6,1.30928953]
[1729580605974,3.76384,2656.9,2656.8,1.30928953]
[1729580606505,0.01882916,2657.0,2656.8,1.30928953]
[1729580606806,0.01882916,2657.0,2656.6,4.52053]
[1729580606807,3.76357,2657.1,2656.9,1.30928953]
[1729580606992,3.76357,2657.1,2657.0,0.06739848]
[1729580607202,7.52714,2657.1,2656.9,1.30928953]
[1729580608309,3.76357,2657.1,2656.9,1.30928953]
[1729580608518,7.52716,2657.1,2656.9,1.30928953]
[1729580608743,3.76364,2657.0,2656.9,1.30928953]
[1729580609085,3.76364,2657.0,2656.9,1.37670372]
[1729580610624,3.76357,2657.1,2656.9,1.37670372]
[1729580610814,3.76357,2657.1,2657.0,1.30928953]
[1729580611013,3.76357,2657.1,2657.0,1.37668801]
[1729580613140,8.30912,2657.3,2657.0,1.37668801]
[1729580613364,3.76337,2657.2,2657.1,1.30928953]
[1729580613546,3.7635,2657.1,2657.0,2.14878801]
[1729580613720,3.7635,2657.1,2657.0,2.08138953]
[1729580614762,3.76337,2657.2,2657.0,2.08138953]
[1729580614923,3.76337,2657.2,2657.1,1.30928953]
[1729580616420,3.7635,2657.1,2657.0,2.08138953]
[1729580617646,7.52657,2657.3,2657.0,2.08138953]
[1729580617846,3.76323,2657.3,2657.1,1.30928953]
[1729580618048,3.76335,2657.2,2657.1,1.30928953]
[1729580618427,3.76323,2657.3,2657.1,1.30928953]
[1729580619953,7.52653,2657.3,2657.1,1.30928953]
[1729580620274,3.76323,2657.3,2657.1,1.30928953]
[1729580620473,3.76335,2657.2,2657.1,1.30928953]
[1729580623102,0.7828,2657.5,2657.0,1.30928953]
[1729580623239,3.7635,2657.1,2656.9,1.30928953]
[1729580623770,3.76327,2657.3,2656.8,0.7785]
[1729580623971,3.76327,2657.3,2656.9,1.30928953]
[1729580624150,3.76327,2657.3,2657.0,1.30928953]
[1729580624745,0.7828,2657.5,2657.0,1.30928953]
[1729580624941,0.99200895,2657.5,2657.0,1.30928953]
[1729580625481,3.76307,2657.4,2657.0,1.30928953]
[1729580625687,3.76338,2657.2,2657.0,1.30928953]
[1729580627880,3.76307,2657.4,2657.0,1.30928953]
[1729580628081,3.76322,2657.3,2657.0,1.30928953]
[1729580628689,3.76307,2657.4,2657.0,1.30928953]
[1729580628862,3.76321,2657.3,2657.0,1.30928953]
[1729580629263,7.52625,2657.4,2657.1,1.30928953]
[1729580629795,3.76307,2657.4,2657.1,1.30928953]
[1729580630007,3.76324,2657.3,2657.1,1.30928953]
[1729580630496,4.54578,2657.5,2657.2,1.30928953]
[1729580631058,4.54578,2657.5,2657.1,2.06498953]
[1729580631258,4.54578,2657.5,2657.2,1.30928953]
[1729580632962,4.54578,2657.5,2657.1,0.7557]
[1729580633299,4.54578,2657.5,2657.2,1.30928953]
[1729580633960,4.54578,2657.5,2657.1,0.7557]
[1729580634262,4.54578,2657.5,2657.2,1.30928953]
[1729580638497,1.30928953,2657.8,2657.2,1.30928953]
[1729580638498,4.59156,2657.7,2657.4,1.30928953]
[1729580638684,4.59118,2657.9,2657.5,1.30928953]
[1729580638860,3.76251,2657.8,2657.6,1.30928953]
[1729580639066,3.76251,2657.8,2657.6,1.37565112]
[1729580639787,3.76251,2657.8,2657.6,0.06636159]
[1729580640096,3.76251,2657.8,2657.6,1.37565112]
[1729580640505,4.59118,2657.9,2657.6,1.37565112]
[1729580641080,3.76264,2657.8,2657.6,0.06636159]
[1729580641307,3.76264,2657.8,2657.6,1.37565112]
[1729580642273,3.76264,2657.8,2657.6,0.06636159]
[1729580642473,4.59118,2657.9,2657.6,0.06636159]
[1729580642781,3.76265,2657.7,2657.6,1.37565112]
[1729580647379,4.59118,2657.9,2657.6,1.37565112]
[1729580647580,4.59118,2657.9,2657.7,1.30928953]
[1729580647982,4.59118,2657.9,2657.8,0.06589725]
[1729580648423,3.76251,2657.8,2657.6,1.30928953]
[1729580649580,4.59118,2657.9,2657.4,0.7951]
[1729580649805,3.76265,2657.7,2657.5,1.30928953]
[1729580650203,3.76279,2657.6,2657.5,1.30928953]
[1729580650552,0.7892,2657.7,2657.2,1.30928953]
[1729580650716,3.76315,2657.4,2657.3,1.30928953]
[1729580653319,3.76315,2657.4,2657.3,1.37523988]
[1729580659844,4.52575,2657.4,2657.3,0.06595035]
[1729580660369,3.76321,2657.3,2657.2,1.30928953]
[1729580662556,3.76343,2657.2,2656.9,0.7924]
[1729580662741,3.76343,2657.2,2657.1,1.30928953]
[1729580665254,3.76343,2657.2,2656.9,0.7924]
[1729580665448,3.76343,2657.2,2657.1,1.30928953]
[1729580666248,3.76343,2657.2,2656.9,0.7924]
[1729580666449,3.76343,2657.2,2657.1,1.30928953]
[1729580667262,3.76343,2657.2,2656.9,0.7924]
[1729580667425,3.76343,2657.2,2657.1,1.30928953]
[1729580668144,3.76343,2657.2,2656.9,0.7924]
[1729580668361,3.76343,2657.2,2657.1,1.37537954]
[1729580671036,3.76343,2657.2,2657.1,0.06609001]
[1729580671570,3.76343,2657.2,2657.1,1.37537954]
[1729580672967,3.76343,2657.2,2657.1,0.06609001]
[1729580673130,3.76343,2657.2,2657.1,1.37537954]
[1729580674954,3.76343,2657.2,2657.1,0.06609001]
[1729580675141,3.76343,2657.2,2657.1,1.37537954]
[1729580675631,3.76343,2657.2,2657.1,0.06609001]
[1729580675837,3.76343,2657.2,2657.1,1.37537954]
[1729580676154,3.76343,2657.2,2657.1,0.06609001]
[1729580676457,4.45680266,2657.2,2657.1,0.06609001]
[1729580688347,3.7635,2657.1,2657.0,1.9]
[1729580688553,4.5189,2657.1,2657.0,1.9]
[1729580689787,7.5189,2657.1,2657.0,1.9]
[1729580689941,3.76392,2656.8,2656.7,0.01882916]
[1729580690143,3.76406,2656.7,2656.4,0.7552]
[1729580690370,3.76406,2656.7,2656.6,1.30928953]
[1729580694848,0.7563,2656.8,2656.4,0.7552]
[1729580695047,3.76435,2656.5,2656.4,1.30928953]
[1729580697170,3.76463,2656.3,2656.2,1.9]
[1729580697495,3.76501,2656.1,2655.7,0.7705]
[1729580697662,3.76507,2656.0,2655.8,1.30928953]
[1729580697863,3.7652,2655.9,2655.8,1.30928953]
[1729580698185,3.7652,2655.9,2655.7,2.07978953]
[1729580698350,3.76534,2655.8,2655.7,1.30928953]
[1729580698691,3.76548,2655.7,2655.6,0.01882916]
[1729580698877,3.76548,2655.7,2655.6,1.30928953]
[1729580699369,3.76562,2655.6,2655.5,0.8318]
[1729580699571,3.76562,2655.6,2655.5,2.14108953]
[1729580700571,3.76562,2655.6,2655.5,1.30928953]
[1729580702071,3.76534,2655.8,2655.5,1.30928953]
[1729580702382,3.76534,2655.8,2655.7,1.30928953]
[1729580703198,3.76534,2655.8,2655.6,1.30928953]
[1729580704510,3.7652,2655.9,2655.6,1.30928953]
[1729580704727,3.76534,2655.8,2655.6,1.30928953]
[1729580705215,3.76576,2655.5,2655.4,1.9]
[1729580707068,3.76576,2655.5,2655.4,3.20928953]
[1729580707269,3.76564,2655.6,2655.4,3.20928953]